bitfinex-derivatives/quotes_ETHF0:USTF0_20230106
["timestamp","ask_amount","ask_price","bid_price","bid_amount"]
[1672995250556,2.39498733,1249.9,1249.8,1.19596975]
[1672995252131,8.60366351,1250.0,1249.8,1.19596975]
[1672995252341,2.39498733,1249.9,1249.8,2.98992438]
[1672995252763,2.39498733,1249.9,1249.8,1.19596975]
[1672995254029,2.39498733,1250.1,1249.8,12.01439144]
[1672995254235,2.39498733,1250.1,1249.9,2.98484783]
[1672995254436,2.39498733,1250.1,1250.0,1.19393913]
[1672995255498,5.39586351,1250.1,1249.9,2.98484783]
[1672995256131,2.39498733,1250.1,1249.9,2.98484783]
[1672995256442,2.39498733,1250.0,1249.9,2.98484783]
[1672995260321,2.39498733,1250.0,1249.9,1.19393913]
[1672995260535,2.39498733,1250.0,1249.9,2.98484783]
[1672995261276,8.60366351,1250.1,1249.9,1.7909087]
[1672995261486,8.60366351,1250.1,1250.0,1.19460767]
[1672995261690,6.20867618,1250.1,1249.9,2.98551637]
[1672995261900,2.39472413,1250.0,1249.9,2.98551637]
[1672995264842,5.60252413,1250.1,1249.9,1.7909087]
[1672995265161,5.60252413,1250.1,1250.0,1.19448297]
[1672995266105,8.60340031,1250.1,1250.0,1.19448297]
[1672995266309,5.60252413,1250.1,1250.0,1.19448297]
[1672995266519,8.60340031,1250.1,1250.0,1.19448297]
[1672995266730,6.20867618,1250.1,1250.0,1.19448297]
[1672995267039,8.60362939,1250.1,1250.0,1.19448297]
[1672995267254,6.20867618,1250.1,1250.0,1.19448297]
[1672995267894,3.00087618,1250.1,1250.0,1.19448297]
[1672995268104,6.20867618,1250.1,1250.0,1.19448297]
[1672995270110,3.00087618,1250.1,1250.0,1.19448297]
[1672995270315,6.20867618,1250.1,1250.0,1.19448297]
[1672995270634,3.00087618,1250.1,1250.0,1.19448297]
[1672995270841,6.20867618,1250.1,1250.0,1.19448297]
[1672995271053,3.00087618,1250.1,1250.0,1.19448297]
[1672995271471,6.20867618,1250.1,1250.0,1.19448297]
[1672995272213,3.00087618,1250.1,1250.0,1.19448297]
[1672995272525,6.20867618,1250.1,1250.0,1.19448297]
[1672995272842,3.00087618,1250.1,1250.0,1.19448297]
[1672995273578,6.20867618,1250.1,1250.0,1.19448297]
[1672995273789,2.39539085,1250.1,1250.0,1.7909087]
[1672995275359,2.39539085,1250.1,1250.0,2.98578282]
[1672995276517,2.39539085,1250.1,1250.0,1.7909087]
[1672995280203,2.39539085,1250.1,1250.0,2.98598088]
[1672995280416,2.39539085,1250.1,1250.0,2.98597723]
[1672995280626,2.39539085,1250.1,1250.0,1.7909087]
[1672995282295,2.39539085,1250.1,1250.0,2.98596567]
[1672995282509,2.39539085,1250.1,1250.0,1.7909087]
[1672995282720,2.39539085,1250.2,1250.0,2.38850913]
[1672995282932,5.39626703,1250.2,1250.1,2.98709694]
[1672995283561,5.39626703,1250.2,1250.1,1.19483878]
[1672995283989,3.00087618,1250.2,1250.1,1.19483878]
[1672995287346,3.00087618,1250.2,1250.0,2.98709694]
[1672995287556,3.00087618,1250.2,1250.1,1.19483878]
[1672995288087,3.00087618,1250.2,1250.0,2.98709694]
[1672995288300,5.39748233,1250.1,1250.0,2.98709694]
[1672995288503,3.2078,1250.1,1250.0,1.19483878]
[1672995288718,11.2158,1250.1,1249.8,1.79225816]
[1672995288932,8.60115989,1249.9,1249.8,1.79225816]
[1672995289140,6.20414104,1249.9,1249.8,1.79225816]
[1672995289351,6.20414104,1249.9,1249.7,4.18076729]
[1672995289560,2.39710117,1249.8,1249.7,4.18076729]
[1672995289775,2.39710117,1249.8,1249.7,1.79225816]
[1672995294188,5.60490117,1249.8,1249.7,1.79225816]
[1672995297343,5.60490117,1249.8,1249.6,4.18076729]
[1672995299759,3.2078,1249.7,1249.6,4.18076729]
[1672995301432,3.2078,1249.7,1249.6,1.79225816]
[1672995302487,3.2078,1249.7,1249.5,7.38850913]
[1672995302488,3.2078,1249.7,1249.5,9.18076729]
[1672995302701,3.2078,1249.7,1249.5,6.79225816]
[1672995303971,3.2078,1249.7,1249.5,9.18076729]
[1672995304181,3.2078,1249.7,1249.5,6.79225816]
[1672995311751,2.39710117,1249.8,1249.5,6.79225816]
[1672995311963,3.2078,1249.7,1249.5,6.79225816]
[1672995312487,2.39710117,1249.8,1249.5,6.79225816]
[1672995312699,3.2078,1249.7,1249.5,6.79225816]
[1672995315229,2.39710117,1249.8,1249.5,6.79225816]
[1672995315433,3.2078,1249.7,1249.5,6.79225816]
[1672995317751,2.39710117,1249.8,1249.5,6.79225816]
[1672995317959,3.2078,1249.7,1249.5,6.79225816]
[1672995319109,3.2078,1249.6,1249.5,6.79225816]
[1672995320584,2.39710117,1249.8,1249.5,6.79225816]
[1672995321101,3.2078,1249.6,1249.5,6.79225816]
[1672995323311,5.60490117,1249.6,1249.4,1.79225816]
[1672995323523,5.60490117,1249.6,1249.3,9.18076729]
[1672995323736,3.2078,1249.4,1249.3,6.79225816]
[1672995323939,3.2078,1249.4,1249.3,9.18076729]
[1672995324896,3.2078,1249.4,1249.3,7.38850913]
[1672995325113,3.2078,1249.4,1249.3,8.80718949]
[1672995325636,3.2078,1249.4,1249.3,7.38850913]
[1672995325843,2.39710117,1249.6,1249.3,8.80718291]
[1672995326059,3.2078,1249.5,1249.4,1.79243172]
[1672995327212,5.39344221,1249.6,1249.4,1.79243172]
[1672995327742,3.2078,1249.5,1249.4,1.79243172]
[1672995328261,5.60490117,1249.5,1249.4,4.18094085]
[1672995329310,2.39710117,1249.5,1249.4,4.18094085]
[1672995329530,5.60490117,1249.5,1249.4,4.18094085]
[1672995329739,2.39710117,1249.5,1249.4,4.18094085]
[1672995329951,5.60490117,1249.5,1249.4,4.18094085]
[1672995331730,2.39710117,1249.5,1249.4,4.18094085]
[1672995332158,5.60490117,1249.5,1249.4,4.18094085]
[1672995333523,2.39710117,1249.5,1249.4,4.18094085]
[1672995333736,3.2078,1249.5,1249.4,4.18094085]
[1672995334257,5.60490117,1249.5,1249.4,4.18094085]
[1672995334782,2.39710117,1249.5,1249.4,4.18094085]
[1672995335207,5.60490117,1249.5,1249.4,4.18094085]
[1672995335408,2.39710117,1249.5,1249.4,4.18094085]
[1672995335613,3.2078,1249.5,1249.4,4.18094085]
[1672995335830,5.60490117,1249.5,1249.4,1.79243172]
[1672995336152,2.39710117,1249.5,1249.4,1.79243172]
[1672995336465,5.60490117,1249.5,1249.4,1.79243172]
[1672995337307,2.39710117,1249.5,1249.4,1.79243172]
[1672995337517,5.60490117,1249.5,1249.4,1.79243172]
[1672995337729,7.40246231,1249.5,1249.4,1.79243172]
[1672995338141,5.60490117,1249.5,1249.4,1.79243172]
[1672995340347,2.39710117,1249.5,1249.4,1.79243172]
[1672995341082,5.60490117,1249.5,1249.4,1.79243172]
[1672995341292,2.39710117,1249.5,1249.4,1.79243172]
[1672995341714,5.60490117,1249.5,1249.4,1.79243172]
[1672995342241,2.39710117,1249.5,1249.4,1.79243172]
[1672995342984,5.60490117,1249.5,1249.4,1.79243172]
[1672995343505,2.39710117,1249.5,1249.4,1.79243172]
[1672995343707,5.60490117,1249.5,1249.4,1.79243172]
[1672995344128,7.40248303,1249.5,1249.4,1.79243172]
[1672995344558,4.19468303,1249.5,1249.4,1.79243172]
[1672995344874,7.40248303,1249.5,1249.4,1.79243172]
[1672995346138,5.00534487,1249.5,1249.4,4.18275715]
[1672995346876,3.2078,1249.5,1249.4,4.18275715]
[1672995347616,13.40144221,1249.6,1249.4,4.18275715]
[1672995347820,3.2078,1249.5,1249.4,4.18275715]
[1672995348979,3.2078,1249.5,1249.4,3.80712864]
[1672995349713,2.39710117,1249.6,1249.4,3.80712864]
[1672995349926,5.60490117,1249.6,1249.5,1.79422361]
[1672995352548,2.39710117,1249.6,1249.5,1.79422361]
[1672995352962,5.60490117,1249.6,1249.5,1.79422361]
[1672995353284,5.60490117,1249.6,1249.5,4.18273274]
[1672995355597,5.60490117,1249.6,1249.5,1.79422361]
[1672995356123,5.60490117,1249.6,1249.5,4.18273274]
[1672995357068,8.60124221,1249.6,1249.5,1.79422361]
[1672995358224,8.60124221,1249.6,1249.5,4.18273274]
[1672995358424,8.60124221,1249.6,1249.5,1.79422361]
[1672995358639,8.60124221,1249.6,1249.5,4.18273274]
[1672995358854,8.60314455,1249.6,1249.5,4.18273274]
[1672995359705,6.20414104,1249.6,1249.5,4.18273274]
[1672995361173,6.20116218,1249.6,1249.5,4.18273274]
[1672995361381,6.20116218,1249.6,1249.5,2.38850913]
[1672995361796,6.20116218,1249.6,1249.5,1.79690117]
[1672995362430,2.99336218,1249.6,1249.5,1.79690117]
[1672995362846,6.20116218,1249.6,1249.5,1.79690117]
[1672995363273,2.99336218,1249.6,1249.5,1.79690117]
[1672995363588,6.20116218,1249.6,1249.5,1.79690117]
[1672995363804,2.99336218,1249.6,1249.5,1.79690117]
[1672995364003,6.20116218,1249.6,1249.5,1.79690117]
[1672995365586,2.99336218,1249.6,1249.5,1.79690117]
[1672995365793,6.20116218,1249.6,1249.5,1.79690117]
[1672995366113,2.99336218,1249.6,1249.5,1.79690117]
[1672995366949,6.20116218,1249.6,1249.5,1.79690117]
[1672995367582,2.99336218,1249.6,1249.5,1.79690117]
[1672995367793,6.20116218,1249.6,1249.5,1.79690117]
[1672995368108,6.20116218,1249.6,1249.5,4.1854103]
[1672995368633,6.20116218,1249.6,1249.5,1.79690117]
[1672995369686,2.99336218,1249.6,1249.5,1.79690117]
[1672995369887,6.20116218,1249.6,1249.5,1.79690117]
[1672995370418,2.99336218,1249.6,1249.5,1.79690117]
[1672995370734,2.99336218,1249.6,1249.5,4.1854103]
[1672995371470,6.20116218,1249.6,1249.5,4.1854103]
[1672995371777,6.20116218,1249.6,1249.5,1.79690117]
[1672995374938,2.99336218,1249.6,1249.5,1.79690117]
[1672995375466,14.20916218,1249.6,1249.5,1.79690117]
[1672995376312,11.2158,1249.6,1249.5,1.79690117]
[1672995377458,8.008,1249.6,1249.5,1.79690117]
[1672995377771,11.2158,1249.6,1249.5,1.79690117]
[1672995379344,8.008,1249.6,1249.5,1.79690117]
[1672995379663,11.2158,1249.6,1249.5,1.79690117]
[1672995381449,8.008,1249.6,1249.5,1.79690117]
[1672995381763,11.2158,1249.6,1249.5,1.79690117]
[1672995382498,8.008,1249.6,1249.5,1.79690117]
[1672995382820,11.2158,1249.6,1249.5,1.79690117]
[1672995384816,8.008,1249.6,1249.5,1.79690117]
[1672995385337,11.2158,1249.6,1249.5,1.79690117]
[1672995385544,11.2158,1249.6,1249.4,4.1854103]
[1672995385753,3.00011994,1249.5,1249.4,4.1854103]
[1672995385963,6.20791994,1249.5,1249.4,4.1854103]
[1672995386814,3.00011994,1249.5,1249.4,4.1854103]
[1672995387027,6.20791994,1249.5,1249.4,4.1854103]
[1672995387227,6.20791994,1249.5,1249.4,1.79690117]
[1672995387754,3.00011994,1249.5,1249.4,1.79690117]
[1672995388173,6.20791994,1249.5,1249.4,1.79690117]
[1672995388595,3.00011994,1249.5,1249.4,1.79690117]
[1672995389233,6.20791994,1249.5,1249.4,1.79690117]
[1672995391017,3.00011994,1249.5,1249.4,1.79690117]
[1672995391325,6.20791994,1249.5,1249.4,1.79690117]
[1672995391539,3.00011994,1249.5,1249.4,1.79690117]
[1672995391858,6.20791994,1249.5,1249.4,1.79690117]
[1672995393218,3.00011994,1249.5,1249.4,1.79690117]
[1672995393439,6.20791994,1249.5,1249.4,1.79690117]
[1672995393852,3.00011994,1249.5,1249.4,1.79690117]
[1672995394062,3.2078,1249.5,1249.4,1.79690117]
[1672995394389,6.20663988,1249.5,1249.4,1.79690117]
[1672995395225,2.99883988,1249.5,1249.4,1.79690117]
[1672995395540,6.20663988,1249.5,1249.4,1.79690117]
[1672995395750,2.99883988,1249.5,1249.4,1.79690117]
[1672995395963,6.20663988,1249.5,1249.4,1.79690117]
[1672995397640,2.99883988,1249.5,1249.4,1.79690117]
[1672995397849,6.20663988,1249.5,1249.4,1.79690117]
[1672995400160,2.99883988,1249.5,1249.4,1.79690117]
[1672995400480,6.20663988,1249.5,1249.4,1.79690117]
[1672995401320,2.99883988,1249.5,1249.4,1.79690117]
[1672995401844,6.20663988,1249.5,1249.4,1.79690117]
[1672995402683,2.99883988,1249.5,1249.4,1.79690117]
[1672995402886,6.20663988,1249.5,1249.4,1.79690117]
[1672995404474,2.99883988,1249.5,1249.4,1.79690117]
[1672995404789,6.20663988,1249.5,1249.4,1.79690117]
[1672995405733,2.99883988,1249.5,1249.4,1.79690117]
[1672995406260,6.20663988,1249.5,1249.4,1.79690117]
[1672995406784,2.99883988,1249.5,1249.4,1.79690117]
[1672995407099,6.20663988,1249.5,1249.4,1.79690117]
[1672995408675,6.20663988,1249.5,1249.4,2.9942431]
[1672995408891,2.99883988,1249.5,1249.4,2.9942431]
[1672995409095,6.20663988,1249.5,1249.4,2.9942431]
[1672995409729,2.99883988,1249.5,1249.4,2.9942431]
[1672995410886,6.20663988,1249.5,1249.4,2.9942431]
[1672995413096,2.99883988,1249.5,1249.4,2.9942431]
[1672995413410,6.20663988,1249.5,1249.4,2.9942431]
[1672995413820,6.20663988,1249.5,1249.4,1.79690117]
[1672995414774,2.99883988,1249.5,1249.4,1.79690117]
[1672995415188,3.2078,1249.5,1249.4,2.99475692]
[1672995416554,3.2078,1249.5,1249.4,1.79690117]
[1672995416973,11.61034509,1249.6,1249.4,1.79690117]
[1672995417290,3.2078,1249.5,1249.4,1.79690117]
[1672995419397,11.61034509,1249.6,1249.4,1.79690117]
[1672995419603,11.61034509,1249.6,1249.5,1.19798765]
[1672995420016,14.81814509,1249.6,1249.5,1.19798765]
[1672995424442,11.61034509,1249.6,1249.5,1.19798765]
[1672995424648,14.81814509,1249.6,1249.5,1.19798765]
[1672995425382,11.61034509,1249.6,1249.5,1.19798765]
[1672995426124,14.81814509,1249.6,1249.5,1.19798765]
[1672995426646,11.61034509,1249.6,1249.5,1.19798765]
[1672995426852,14.81814509,1249.6,1249.5,1.19798765]
[1672995430537,11.61034509,1249.6,1249.5,1.19798765]
[1672995430739,14.81814509,1249.6,1249.5,1.19798765]
[1672995431477,14.81814509,1249.6,1249.4,1.16597613]
[1672995431688,12.21133164,1249.5,1249.4,1.16597613]
[1672995431900,15.81413795,1249.5,1249.4,1.16597613]
[1672995432218,11.61080631,1249.5,1249.4,1.16597613]
[1672995432428,11.61080631,1249.5,1249.4,2.9628773]
[1672995432634,11.61080631,1249.5,1249.4,1.16597613]
[1672995433053,15.81396554,1249.5,1249.3,1.79690117]
[1672995433268,3.2078,1249.4,1249.3,1.79690117]
[1672995436004,6.20861347,1249.4,1249.3,1.79690117]
[1672995436418,9.20899148,1249.4,1249.3,1.79690117]
[1672995436629,6.00119148,1249.4,1249.3,1.79690117]
[1672995437153,9.20899148,1249.4,1249.3,1.79690117]
[1672995438622,6.00119148,1249.4,1249.3,1.79690117]
[1672995438834,9.20899148,1249.4,1249.3,1.79690117]
[1672995446620,6.00119148,1249.4,1249.3,1.79690117]
[1672995446825,9.20899148,1249.4,1249.3,1.79690117]
[1672995449988,6.00119148,1249.4,1249.3,1.79690117]
[1672995450721,9.20899148,1249.4,1249.3,1.79690117]
[1672995454077,6.00119148,1249.4,1249.3,1.79690117]
[1672995454289,9.20899148,1249.4,1249.3,1.79690117]
[1672995454706,6.00119148,1249.4,1249.3,1.79690117]
[1672995454918,9.20899148,1249.4,1249.3,1.79690117]
[1672995457864,6.00119148,1249.4,1249.3,1.79690117]
[1672995458077,9.20899148,1249.4,1249.3,1.79690117]
[1672995461865,6.00119148,1249.4,1249.3,1.79690117]
[1672995462074,9.20899148,1249.4,1249.3,1.79690117]
[1672995462802,6.00119148,1249.4,1249.3,1.79690117]
[1672995463013,9.20899148,1249.4,1249.3,1.79690117]
[1672995463331,6.00119148,1249.4,1249.3,1.79690117]
[1672995463535,9.20899148,1249.4,1249.3,1.79690117]
[1672995463857,6.00119148,1249.4,1249.3,1.79690117]
[1672995464067,9.20899148,1249.4,1249.3,1.79690117]
[1672995464271,6.00119148,1249.4,1249.3,1.79690117]
[1672995464481,9.20899148,1249.4,1249.3,1.79690117]
[1672995464688,6.20861347,1249.4,1249.3,1.79690117]
[1672995467323,3.00081347,1249.4,1249.3,1.79690117]
[1672995467640,6.20861347,1249.4,1249.3,1.79690117]
[1672995467851,3.00081347,1249.4,1249.3,1.79690117]
[1672995468374,6.20861347,1249.4,1249.3,1.79690117]
[1672995469424,3.00081347,1249.4,1249.3,1.79690117]
[1672995469635,6.20861347,1249.4,1249.3,1.79690117]
[1672995470258,9.81141978,1249.4,1249.3,1.79690117]
[1672995473106,6.60361978,1249.4,1249.3,1.79690117]
[1672995473317,9.81141978,1249.4,1249.3,1.79690117]
[1672995473838,6.60361978,1249.4,1249.3,1.79690117]
[1672995474047,9.81141978,1249.4,1249.3,1.79690117]
[1672995474679,6.60361978,1249.4,1249.3,1.79690117]
[1672995474890,9.81141978,1249.4,1249.3,1.79690117]
[1672995475841,6.60361978,1249.4,1249.3,1.79690117]
[1672995476041,6.20861347,1249.4,1249.3,1.79690117]
[1672995480882,9.81141978,1249.4,1249.3,1.79690117]
[1672995482354,6.60361978,1249.4,1249.3,1.79690117]
[1672995482560,9.81141978,1249.4,1249.3,1.79690117]
[1672995482775,6.20861347,1249.4,1249.3,1.79690117]
[1672995485615,6.20861347,1249.4,1249.2,2.38850913]
[1672995485616,9.81141978,1249.4,1249.2,4.1854103]
[1672995485827,3.00100841,1249.3,1249.2,4.1854103]
[1672995487296,6.20880841,1249.3,1249.2,4.1854103]
[1672995488659,6.20880841,1249.3,1249.2,2.38850913]
[1672995490868,3.00100841,1249.3,1249.2,2.38850913]
[1672995491289,6.20880841,1249.3,1249.2,2.38850913]
[1672995493388,6.20880841,1249.3,1249.2,3.80744424]
[1672995494452,3.00100841,1249.3,1249.2,3.80744424]
[1672995494766,6.20880841,1249.3,1249.2,3.80744424]
[1672995502741,3.00100841,1249.3,1249.2,3.80744424]
[1672995502952,6.20880841,1249.3,1249.2,3.80744424]
[1672995503694,6.20459749,1249.3,1249.2,3.80744424]
[1672995506429,2.99679749,1249.3,1249.2,3.80744424]
[1672995506638,6.20459749,1249.3,1249.2,3.80744424]
[1672995515143,2.99679749,1249.3,1249.2,3.80744424]
[1672995515350,6.20459749,1249.3,1249.2,3.80744424]
[1672995516093,6.20459749,1249.3,1249.2,2.38850913]
[1672995516519,6.20459749,1249.3,1249.2,3.80748138]
[1672995518097,2.99679749,1249.3,1249.2,3.80748138]
[1672995518304,6.20459749,1249.3,1249.2,3.80748138]
[1672995523142,6.20459749,1249.3,1249.2,6.80125389]
[1672995523983,2.99679749,1249.3,1249.2,6.80125389]
[1672995524194,6.20459749,1249.3,1249.2,6.80125389]
[1672995525244,2.99679749,1249.3,1249.2,6.80125389]
[1672995525554,6.20459749,1249.3,1249.2,6.80125389]
[1672995525768,2.99679749,1249.3,1249.2,6.80125389]
[1672995526292,6.20459749,1249.3,1249.2,6.80125389]
[1672995526713,6.20459749,1249.3,1249.2,6.79504203]
[1672995529981,4.20221932,1249.3,1249.2,1.41897225]
[1672995530194,2.40126818,1249.3,1249.2,4.41629256]
[1672995531352,4.20180802,1249.3,1249.2,4.41629256]
[1672995533979,2.40126818,1249.3,1249.2,4.41629256]
[1672995534191,4.20143728,1249.3,1249.2,4.41629256]
[1672995535551,2.40126818,1249.3,1249.2,4.41629256]
[1672995538071,2.40126818,1249.3,1249.2,1.41897225]
[1672995549535,5.60906818,1249.3,1249.2,1.41897225]
[1672995550367,2.40126818,1249.3,1249.2,1.41897225]
[1672995550678,5.60906818,1249.3,1249.2,1.41897225]
[1672995551628,2.40126818,1249.3,1249.2,1.41897225]
[1672995552052,5.60906818,1249.3,1249.2,1.41897225]
[1672995556789,8.60586567,1249.3,1249.2,3.8161803]
[1672995557837,5.39806567,1249.3,1249.2,3.8161803]
[1672995558251,2.40126818,1249.3,1249.2,4.41629256]
[1672995560043,2.40126818,1249.3,1249.2,6.8133211]
[1672995560880,5.39806567,1249.3,1249.2,3.81600079]
[1672995561302,5.39806567,1249.3,1249.2,6.8133211]
[1672995561511,2.40126818,1249.3,1249.2,6.8133211]
[1672995562036,5.39806567,1249.3,1249.2,3.81600079]
[1672995562674,5.39806567,1249.3,1249.2,6.8133211]
[1672995565301,5.39806567,1249.3,1249.2,3.81600079]
[1672995566452,5.39806567,1249.3,1249.2,6.8133211]
[1672995566876,2.40126818,1249.3,1249.2,6.8133211]
[1672995568032,5.39806567,1249.3,1249.2,6.8133211]
[1672995569186,8.60586567,1249.3,1249.2,6.8133211]
[1672995570450,5.39806567,1249.3,1249.2,6.8133211]
[1672995570653,8.60586567,1249.3,1249.2,6.8133211]
[1672995570863,5.39806567,1249.3,1249.2,6.8133211]
[1672995571394,2.40126818,1249.3,1249.2,4.41629256]
[1672995571711,5.39806567,1249.3,1249.2,6.8137297]
[1672995572760,5.39806567,1249.3,1249.2,4.41629256]
[1672995573184,5.39806567,1249.3,1249.2,6.81402208]
[1672995574647,2.99679749,1249.3,1249.2,4.41629256]
[1672995575913,5.39843307,1249.3,1249.2,4.41629256]
[1672995576123,2.99679749,1249.3,1249.2,4.41629256]
[1672995576860,5.39854045,1249.3,1249.2,4.41629256]
[1672995577808,2.99679749,1249.3,1249.2,4.41629256]
[1672995578010,5.39853456,1249.3,1249.2,4.41629256]
[1672995578219,2.99679749,1249.3,1249.2,4.41629256]
[1672995578743,8.60637009,1249.3,1249.2,4.41629256]
[1672995578957,6.20459749,1249.3,1249.2,6.81418889]
[1672995581164,2.99679749,1249.3,1249.2,6.81418889]
[1672995581689,6.20459749,1249.3,1249.2,6.81418889]
[1672995581998,2.99679749,1249.3,1249.2,6.81418889]
[1672995582213,6.20459749,1249.3,1249.2,6.81418889]
[1672995582636,6.20459749,1249.3,1249.2,4.41629256]
[1672995582836,6.20459749,1249.3,1249.2,6.81442085]
[1672995583052,6.20459749,1249.3,1249.2,4.41629256]
[1672995583053,2.99679749,1249.3,1249.2,4.41629256]
[1672995583254,6.20459749,1249.3,1249.2,6.81437747]
[1672995585476,2.99679749,1249.3,1249.2,6.81437747]
[1672995585792,6.20459749,1249.3,1249.2,6.81437747]
[1672995588315,6.20459749,1249.3,1249.2,4.41629256]
[1672995588943,6.20459749,1249.3,1249.2,6.81444259]
[1672995589680,6.20459749,1249.3,1249.2,4.41629256]
[1672995590938,2.99679749,1249.3,1249.2,4.41629256]
[1672995591353,6.20459749,1249.3,1249.2,4.41629256]
[1672995591564,2.99679749,1249.3,1249.2,4.41629256]
[1672995592833,6.20459749,1249.3,1249.2,4.41629256]
[1672995593144,2.99679749,1249.3,1249.2,4.41629256]
[1672995593568,6.20459749,1249.3,1249.2,4.41629256]
[1672995594410,2.99679749,1249.3,1249.2,4.41629256]
[1672995594724,6.20459749,1249.3,1249.2,6.81449066]
[1672995595041,6.20459749,1249.3,1249.2,4.41629256]
[1672995597040,6.20459749,1249.3,1249.2,3.81749626]
[1672995597671,6.20459749,1249.3,1249.2,6.81481657]
[1672995597883,6.20459749,1249.3,1249.2,3.81749626]
[1672995599357,2.99679749,1249.3,1249.2,3.81749626]
[1672995599669,6.20459749,1249.3,1249.2,3.81749626]
[1672995603767,6.20459749,1249.3,1249.2,6.81481657]
[1672995603968,6.20459749,1249.3,1249.2,3.81749626]
[1672995604597,6.20459749,1249.3,1249.2,6.81481657]
[1672995604811,6.20459749,1249.3,1249.2,3.81749626]
[1672995606071,6.81060631,1249.3,1249.2,1.19940737]
[1672995606289,11.01376554,1249.3,1249.1,1.16738816]
[1672995606500,3.60280631,1249.2,1249.1,1.16738816]
[1672995606810,7.80596554,1249.2,1249.1,1.16738816]
[1672995607231,3.60280631,1249.2,1248.9,5.0]
[1672995607443,5.60623403,1249.0,1248.9,5.0]
[1672995609123,7.4039357,1249.0,1248.9,5.0]
[1672995611228,5.00550167,1249.0,1248.9,5.0]
[1672995611636,7.4039357,1249.0,1248.9,5.0]
[1672995611851,5.60623403,1249.0,1248.9,5.0]
[1672995612488,8.60427657,1249.0,1248.7,5.0]
[1672995612695,3.2078,1248.8,1248.7,5.0]
[1672995613538,3.2078,1248.9,1248.7,5.0]
[1672995626585,2.39843403,1249.0,1248.7,5.0]
[1672995626899,3.2078,1248.8,1248.7,5.0]
[1672995627634,3.2078,1248.8,1248.5,26.59]
[1672995627844,3.2078,1248.8,1248.5,13.008]
[1672995628369,3.2078,1248.6,1248.5,13.008]
[1672995631419,3.2078,1248.8,1248.6,0.31544361]
[1672995633621,3.2078,1248.7,1248.6,0.31544361]
[1672995635200,3.2078,1248.8,1248.6,0.31544361]
[1672995638357,5.60623403,1248.8,1248.6,0.31544361]
[1672995640986,3.2078,1248.7,1248.6,0.31544361]
[1672995641508,2.39843403,1248.8,1248.6,0.31544361]
[1672995641719,3.2078,1248.7,1248.6,0.31544361]
[1672995644354,2.39843403,1248.8,1248.6,0.31544361]
[1672995644567,3.2078,1248.7,1248.6,0.31544361]
[1672995645088,3.2078,1248.7,1248.6,2.70646909]
[1672995648466,6.20601049,1248.7,1248.6,0.31544361]
[1672995652863,11.2158,1248.7,1248.6,4.361e-05]
[1672995653189,14.21235476,1248.7,1248.6,4.361e-05]
[1672995653809,11.2158,1248.7,1248.6,4.361e-05]
[1672995658242,14.81860631,1248.7,1248.6,4.361e-05]
[1672995661187,11.2158,1248.7,1248.6,4.361e-05]
[1672995661710,14.81860631,1248.7,1248.6,4.361e-05]
[1672995662645,8.008,1248.7,1248.6,4.361e-05]
[1672995663070,11.2158,1248.7,1248.6,4.361e-05]
[1672995663392,14.2158,1248.7,1248.6,4.361e-05]
[1672995663805,17.81860631,1248.7,1248.6,4.361e-05]
[1672995664233,14.2158,1248.7,1248.6,4.361e-05]
[1672995664963,17.81860631,1248.7,1248.6,4.361e-05]
[1672995666325,14.2158,1248.7,1248.6,4.361e-05]
[1672995667283,17.81860631,1248.7,1248.6,4.361e-05]
[1672995668537,28.41895923,1248.7,1248.6,4.361e-05]
[1672995668957,33.22358263,1248.7,1248.6,4.361e-05]
[1672995669168,28.41895923,1248.7,1248.6,4.361e-05]
[1672995669795,33.22358263,1248.7,1248.6,4.361e-05]
[1672995670220,28.41895923,1248.7,1248.6,4.361e-05]
[1672995673363,25.21115923,1248.7,1248.6,4.361e-05]
[1672995673686,28.41895923,1248.7,1248.6,4.361e-05]
[1672995674952,25.21115923,1248.7,1248.6,4.361e-05]
[1672995675158,28.41895923,1248.7,1248.6,4.361e-05]
[1672995675579,25.21115923,1248.7,1248.6,4.361e-05]
[1672995675792,28.41895923,1248.7,1248.6,4.361e-05]
[1672995680416,25.21115923,1248.7,1248.6,4.361e-05]
[1672995681045,28.41895923,1248.7,1248.6,4.361e-05]
[1672995681675,25.21115923,1248.7,1248.6,4.361e-05]
[1672995681884,8.008,1248.5,1248.0,4.18756034]
[1672995682095,3.2078,1248.1,1248.0,4.18756034]
[1672995683358,3.2078,1248.1,1248.0,2.39102548]
[1672995683671,2.39403006,1248.3,1248.0,2.39102548]
[1672995683884,2.39403006,1248.3,1248.1,1.79617962]
[1672995684089,3.2078,1248.2,1248.1,1.79617962]
[1672995684934,3.2078,1248.2,1248.0,4.1872051]
[1672995685144,3.2078,1248.2,1248.1,1.79617962]
[1672995685357,2.39403006,1248.3,1248.1,1.79617962]
[1672995685668,3.2078,1248.2,1248.1,1.79617962]
[1672995687663,2.39403006,1248.3,1248.1,1.79617962]
[1672995687874,3.2078,1248.2,1248.1,1.79617962]
[1672995689345,3.2078,1248.2,1248.1,4.1872051]
[1672995689561,5.60183006,1248.2,1248.0,4.1872051]
[1672995689756,5.60183006,1248.2,1248.0,1.79617962]
[1672995690910,3.2078,1248.1,1248.0,1.79617962]
[1672995693130,5.38656763,1248.2,1248.0,1.79617962]
[1672995693442,3.2078,1248.1,1248.0,1.79617962]
[1672995693649,5.60183006,1248.1,1247.9,1.79617962]
[1672995693864,2.39403006,1248.0,1247.9,1.79617962]
[1672995694075,8.59436763,1248.1,1247.9,1.79617962]
[1672995694280,5.60183006,1248.1,1247.9,1.79617962]
[1672995695330,5.60183006,1248.1,1247.9,4.1872051]
[1672995695759,5.60183006,1248.1,1247.9,1.79617962]
[1672995696389,2.39403006,1248.1,1247.9,1.79617962]
[1672995696599,3.2078,1248.0,1247.9,1.79617962]
[1672995697234,3.2078,1248.0,1247.9,4.1872051]
[1672995697755,2.39403006,1248.1,1247.9,4.1872051]
[1672995698067,3.2078,1248.0,1247.9,1.79617962]
[1672995700381,2.39403006,1248.1,1247.9,1.79617962]
[1672995700584,3.2078,1248.0,1247.9,1.79617962]
[1672995702897,3.2078,1248.0,1247.9,4.1872051]
[1672995703736,2.39403006,1248.1,1247.9,4.1872051]
[1672995703949,3.2078,1248.0,1247.9,4.1872051]
[1672995704799,3.2078,1248.0,1247.9,2.39102548]
[1672995705004,3.2078,1248.0,1247.9,4.18962358]
[1672995705850,3.2078,1248.0,1247.9,2.39102548]
[1672995707210,2.39403006,1248.1,1247.9,2.39102548]
[1672995707427,3.2078,1248.0,1247.9,2.39102548]
[1672995707738,3.2078,1248.0,1247.9,4.19009719]
[1672995708055,3.2078,1248.0,1247.9,2.39102548]
[1672995710571,2.39403006,1248.1,1247.9,2.39102548]
[1672995710884,3.2078,1248.0,1247.9,2.39102548]
[1672995711095,2.39403006,1248.1,1247.9,2.39102548]
[1672995711310,2.39403006,1248.1,1248.0,1.79956081]
[1672995711626,5.60183006,1248.1,1248.0,1.79956081]
[1672995712573,6.20033757,1248.1,1248.0,1.79956081]
[1672995712783,6.20033757,1248.1,1247.9,1.79956081]
[1672995712987,2.3981699,1248.0,1247.9,4.19058629]